bitfinex-derivatives/quotes_ETHF0:USTF0_20210110
["timestamp","ask_amount","ask_price","bid_price","bid_amount"]
[1610300093244,30.0,1266.3,1264.7,4.00959]
[1610300093444,1.73671281,1265.7,1264.7,4.00959]
[1610300093843,1.38894178,1265.6,1264.8,10.0]
[1610300094043,1.38900326,1265.7,1264.8,10.0]
[1610300094242,1.38900326,1265.7,1264.9,10.0]
[1610300094843,1.38900026,1265.8,1265.6,4.00959]
[1610300095245,1.39033341,1266.0,1265.6,4.00959]
[1610300095443,1.73791676,1266.1,1265.6,4.00959]
[1610300095444,1.39265335,1266.1,1265.7,10.0]
[1610300095843,2.91151119,1266.2,1265.7,10.0]
[1610300095844,1.39361981,1266.2,1265.7,11.5266]
[1610300096044,1.39361981,1266.2,1265.8,10.0]
[1610300096243,4.30475684,1266.2,1265.8,10.0]
[1610300096442,4.30475684,1266.2,1265.9,10.0]
[1610300096643,1.39309631,1266.0,1265.9,10.0]
[1610300096843,1.39309631,1266.0,1265.9,4.00959]
[1610300097244,1.39466372,1266.2,1265.9,4.00959]
[1610300097444,1.39466372,1266.2,1265.9,14.00959]
[1610300097647,2.91099699,1266.2,1266.0,10.0]
[1610300098046,2.91099699,1266.2,1266.1,10.0]
[1610300098446,2.91099699,1266.2,1266.0,10.0]
[1610300098846,2.91099699,1266.2,1265.8,1.8658]
[1610300098847,2.91099699,1266.2,1266.1,14.00959]
[1610300099049,4.30747808,1266.3,1266.1,14.00959]
[1610300099050,2.91198562,1266.3,1266.1,16.49019]
[1610300099247,2.91198562,1266.3,1266.1,6.49019]
[1610300099646,2.91198562,1266.3,1266.2,10.0]
[1610300100048,1.39754352,1266.7,1266.2,10.0]
[1610300100447,4.30619637,1266.3,1266.1,6.49019]
[1610300100647,3.05598943,1266.5,1266.1,6.49019]
[1610300100648,1.39681975,1266.5,1266.1,6.49019]
[1610300100847,1.39681975,1266.5,1266.4,4.00959]
[1610300101049,1.74553289,1266.5,1266.4,5.90039]
[1610300101248,1.74553289,1266.5,1266.4,15.90039]
[1610300101449,5.96894203,1266.5,1266.4,15.90039]
[1610300101648,3.05823827,1266.5,1266.4,15.90039]
[1610300102048,7.27805649,1266.6,1266.4,15.90039]
[1610300102449,7.27805649,1266.6,1266.4,1.8908]
[1610300102450,1.39780415,1266.5,1266.4,1.8908]
[1610300102848,4.30866305,1266.5,1266.4,1.8908]
[1610300103049,4.30866305,1266.5,1266.4,11.8908]
[1610300103251,1.74555175,1266.5,1266.4,14.00959]
[1610300103854,4.30607187,1266.6,1266.4,10.0]
[1610300104051,4.30607187,1266.6,1266.4,11.8185]
[1610300104251,1.39574083,1266.7,1266.5,10.0]
[1610300104457,1.39606127,1266.8,1266.5,10.0]
[1610300104652,1.39606127,1266.8,1266.6,10.0]
[1610300105052,1.39606127,1266.8,1266.5,10.0]
[1610300105251,1.04748726,1266.7,1266.5,10.0]
[1610300105452,1.04748726,1266.7,1266.4,1.8185]
[1610300105752,1.04636284,1266.5,1266.4,1.8185]
[1610300106153,4.6529025,1266.5,1266.4,11.8185]
[1610300106355,1.74221254,1266.5,1266.4,11.8185]
[1610300106755,3.04749232,1266.5,1266.4,11.8185]
[1610300107156,4.34930388,1266.5,1266.4,11.8185]
[1610300107356,6.08192993,1266.5,1266.4,11.8185]
[1610300107857,40.73024145,1266.6,1266.4,11.8185]
[1610300108059,11.26941456,1266.8,1266.5,10.0]
[1610300108457,12.98067125,1266.7,1266.4,10.0]
[1610300108657,14.75377125,1266.7,1266.6,10.0]
[1610300108858,44.75377125,1266.7,1266.6,10.0]
[1610300109057,44.75377125,1266.7,1265.5,10.0]
[1610300109257,54.23208252,1266.7,1265.5,10.0]
[1610300109457,24.23208252,1266.7,1265.2,4.00959]
[1610300109657,1.72724039,1265.4,1265.2,4.00959]
[1610300109857,1.72724039,1265.4,1265.3,10.0]
[1610300110058,1.38146648,1265.4,1265.3,10.0]
[1610300110258,1.03578593,1265.4,1265.2,4.00959]
[1610300110659,1.03578593,1265.4,1265.3,10.0]
[1610300111058,1.38112309,1265.6,1265.3,10.0]
[1610300111059,1.03598139,1265.5,1265.3,10.0]
[1610300111259,1.72560384,1265.6,1265.4,10.0]
[1610300111460,5.73519384,1265.6,1265.4,10.0]
[1610300111659,5.73519384,1265.6,1265.3,10.0]
[1610300111861,9.94815001,1265.6,1265.3,10.0]
[1610300112059,9.94815001,1265.6,1265.2,10.0]
[1610300112258,1.72521843,1265.4,1265.2,10.0]
[1610300112459,3.02140533,1265.4,1265.2,10.0]
[1610300112659,3.02140533,1265.4,1265.3,10.0]
[1610300112859,4.31444612,1265.5,1265.3,10.0]
[1610300113060,6.03012421,1265.4,1265.2,10.0]
[1610300113459,4.3083961,1265.3,1265.0,4.00959]
[1610300113659,4.3083961,1265.3,1264.5,10.0]
[1610300113859,3.01770576,1265.3,1265.1,10.0]
[1610300114259,3.01664284,1265.2,1264.6,10.0]
[1610300114458,3.01664284,1265.2,1264.4,55.4861]
[1610300114660,1.03201557,1264.9,1264.7,10.0]
[1610300114862,1.03174464,1264.8,1264.7,10.0]
[1610300115061,1.03174464,1264.8,1264.5,10.0]
[1610300115461,1.03174464,1264.8,1264.7,4.00959]
[1610300115663,1.03026243,1264.9,1264.7,4.00959]
[1610300115963,1.030538,1265.0,1264.7,14.00959]
[1610300116364,1.03003585,1264.9,1264.8,10.0]
[1610300116565,1.03003585,1264.9,1264.7,4.00959]
[1610300116863,1.02942786,1264.8,1264.7,4.00959]
[1610300117063,1.02942786,1264.8,1264.4,55.4861]
[1610300117265,1.02942786,1264.8,1264.7,10.0]
[1610300117466,5.03901786,1264.8,1264.7,10.0]
[1610300117665,8.29502904,1264.8,1264.5,10.0]
[1610300117865,8.29502904,1264.8,1264.4,53.6025]
[1610300117866,6.92655014,1264.8,1264.7,10.0]
[1610300118266,4.00959,1264.8,1264.7,10.0]
[1610300118466,5.59039,1264.8,1264.5,10.0]
[1610300118665,19.613246,1264.8,1264.4,53.6025]
[1610300118867,19.613246,1264.8,1264.6,10.0]
[1610300118868,11.09783464,1264.7,1264.6,10.0]
[1610300119265,11.09783464,1264.7,1264.5,10.0]
[1610300119266,5.04527939,1264.7,1264.5,10.0]
[1610300119466,15.09850042,1264.6,1264.4,53.6025]
[1610300119666,18.01636789,1264.6,1263.3,55.3687]
[1610300119866,2.9177286,1264.5,1263.3,2.2618]
[1610300120066,2.9177286,1264.5,1263.4,10.0]
[1610300120267,1.70388297,1263.5,1263.4,10.0]
[1610300120466,2.98412129,1263.5,1263.4,10.0]
[1610300120666,2.98412129,1263.5,1261.4,0.24322305]
[1610300120868,4.25863989,1263.5,1261.3,0.24322716]
[1610300121267,1.02127174,1262.9,1261.2,0.24323857]
[1610300121466,1.02127174,1262.9,1261.9,4.00959]
[1610300121670,1.02003512,1262.5,1261.9,4.00959]
[1610300121867,1.01996097,1262.4,1261.9,4.00959]
[1610300122268,1.01977958,1262.3,1262.0,10.0]
[1610300122668,1.01879626,1262.2,1260.8,10.0]
[1610300123069,2.96963873,1262.2,1262.1,10.0]
[1610300123269,2.96963873,1262.2,1262.1,2.1966]
[1610300123469,2.96963873,1262.2,1262.1,6.20619]
[1610300123669,2.96963873,1262.2,1262.1,16.20619]
[1610300123869,2.97010913,1262.3,1262.1,16.20619]
[1610300124275,2.92080462,1262.2,1262.1,12.1966]
[1610300124471,2.92080462,1262.2,1262.1,2.1966]
[1610300124672,4.23769474,1262.3,1261.8,1.8397]
[1610300124870,4.23769474,1262.3,1262.1,10.0]
[1610300125071,2.9688092,1262.2,1262.1,10.0]
[1610300125271,2.9688092,1262.2,1261.8,1.8397]
[1610300125272,1.69443958,1262.2,1261.8,1.8397]
[1610300125673,1.69443958,1262.2,1260.2,0.24340292]
[1610300125872,2.96700797,1262.0,1261.9,10.0]
[1610300126071,2.96700797,1262.0,1261.4,4.00959]
[1610300126272,1.0155798,1261.6,1261.4,4.00959]
[1610300126473,1.01621303,1261.7,1261.4,4.00959]
[1610300126877,1.01711338,1261.8,1261.4,5.94889]
[1610300127073,1.01711338,1261.8,1261.5,10.0]
[1610300127273,1.01662601,1261.7,1261.5,10.0]
[1610300127475,1.01662601,1261.7,1261.6,10.0]
[1610300127674,1.01662601,1261.7,1261.5,10.0]
[1610300127874,5.36382612,1261.7,1261.5,10.0]
[1610300128073,4.00959,1261.7,1261.5,10.0]
[1610300128281,6.93075408,1261.7,1261.6,10.0]
[1610300128575,6.97273759,1261.7,1261.6,10.0]
[1610300128777,6.97273759,1261.7,1261.5,10.0]
[1610300128977,9.89473546,1261.7,1261.5,10.0]
[1610300129177,1.5678,1261.6,1260.9,10.0]
[1610300129379,4.49093655,1261.6,1260.9,10.0]
[1610300129577,4.49093655,1261.6,1261.5,10.0]
[1610300129578,14.09512005,1261.6,1261.5,10.0]
[1610300129777,14.09512005,1261.6,1261.5,8.7991]
[1610300129979,9.26070565,1261.0,1260.2,2.0336]
[1610300130177,9.26070565,1261.0,1260.3,10.0]
[1610300130380,1.01123857,1260.4,1260.3,10.0]
[1610300130577,1.01123857,1260.4,1260.0,5.0]
[1610300130781,1.68356453,1260.4,1260.0,5.0]
[1610300130978,1.68356453,1260.4,1260.3,10.0]
[1610300130979,2.92470998,1260.4,1260.3,10.0]
[1610300131179,2.92470998,1260.4,1260.3,1.5712]
[1610300131379,1.5629,1260.4,1260.1,9.7312]
[1610300131579,4.20912222,1260.5,1260.0,5.0]
[1610300131780,10.49056826,1260.4,1260.2,10.0]
[1610300131982,12.59364319,1260.4,1260.2,8.0948]
[1610300132180,12.59364319,1260.4,1258.4,1.5958]
[1610300132382,15.49099692,1260.3,1258.4,1.5958]
[1610300132586,4.00959,1258.5,1258.4,1.5958]
[1610300132981,6.22099,1258.5,1258.4,1.1984]
[1610300133181,6.22099,1258.5,1258.3,1.5925]
[1610300133382,6.22099,1258.5,1256.8,0.24395365]
[1610300133585,1.00045098,1258.0,1256.9,10.0]
[1610300133783,2.59095098,1258.0,1256.9,10.0]
[1610300134388,1.00023337,1257.9,1256.9,1.5717]
[1610300134590,4.00959,1257.9,1257.3,5.81889]
[1610300134790,1.00077714,1258.0,1257.3,5.71889]
[1610300134989,1.00072713,1257.9,1257.4,10.0]
[1610300135391,0.66681781,1257.8,1257.3,5.71889]
[1610300135589,0.66681781,1257.8,1257.5,10.0]
[1610300135990,0.66758919,1258.0,1257.5,10.0]
[1610300136191,0.66758919,1258.0,1257.4,10.0]
[1610300136389,0.6681152,1258.1,1257.5,10.0]
[1610300136591,0.66779513,1258.0,1257.9,4.00959]
[1610300136989,2.27489513,1258.0,1257.9,4.00959]
[1610300137391,0.66848427,1258.1,1257.9,14.00959]
[1610300137791,0.66848427,1258.1,1257.9,16.00159]
[1610300137991,0.66848427,1258.1,1258.0,10.0]
[1610300138291,0.66848708,1258.2,1258.0,10.0]
[1610300138491,4.00959,1258.1,1258.0,10.0]
[1610300138693,4.67794877,1258.1,1257.9,1.992]
[1610300139093,4.67794877,1258.1,1258.0,10.0]
[1610300139393,4.00959,1258.1,1258.0,10.0]
[1610300139795,5.01307516,1258.1,1258.0,10.0]
[1610300140195,2.9296915,1258.1,1258.0,10.0]
[1610300140595,7.94406721,1258.1,1258.0,10.0]
[1610300140795,4.67984937,1258.1,1258.0,10.0]
[1610300140995,0.67025937,1258.1,1258.0,10.0]
[1610300141597,1.00480303,1258.1,1258.0,10.0]
[1610300141797,1.33973737,1258.2,1258.0,10.0]
[1610300142304,1.33973737,1258.2,1257.9,1.992]
[1610300142305,1.00565584,1258.1,1257.9,1.992]
[1610300142501,0.6706901,1258.1,1257.9,1.992]
[1610300142698,0.6706901,1258.1,1258.0,14.00959]
[1610300142899,2.60993516,1258.2,1258.0,14.00959]
[1610300143099,2.60993516,1258.2,1258.0,1.9823]
[1610300143299,0.67100307,1258.1,1258.0,1.9823]
[1610300143499,3.93643468,1258.1,1258.0,1.9823]
[1610300143900,1.34254187,1258.2,1258.1,10.0]
[1610300144100,1.67845318,1258.3,1258.1,10.0]
[1610300144302,1.67845318,1258.3,1258.0,1.9823]
[1610300144501,4.60792942,1258.3,1258.0,11.9823]
[1610300144703,4.60792942,1258.3,1258.1,10.0]
[1610300144904,1.67994203,1258.2,1258.1,10.0]
[1610300145303,4.60985699,1258.2,1257.3,1.8093]
[1610300145503,13.82987069,1258.3,1255.8,54.9974]
[1610300145903,1.66323864,1255.9,1255.8,57.4767]
[1610300146505,0.66841235,1256.3,1255.8,67.4767]
[1610300146705,4.00959,1255.9,1255.8,67.4767]
[1610300146905,4.00959,1255.9,1255.8,57.4767]
[1610300147106,4.00959,1255.9,1255.8,2.4793]
[1610300147508,14.43307196,1255.9,1255.8,10.0]
[1610300147706,14.43307196,1255.9,1255.8,8.8166]
[1610300147906,6.94467096,1255.9,1255.8,3.92393373]
[1610300148306,14.433276,1255.9,1253.9,153.6178]
[1610300148707,4.67542094,1255.2,1255.1,10.0]
[1610300148907,5.00708193,1255.2,1255.1,10.0]
[1610300149107,5.00708193,1255.2,1254.9,4.00959]
[1610300149308,4.26485675,1255.2,1254.9,4.00959]
[1610300149506,4.26485675,1255.2,1255.0,10.0]
[1610300149707,4.15756648,1255.6,1255.0,10.0]
[1610300149708,0.99706007,1255.1,1255.0,10.0]
[1610300149909,0.66578631,1255.3,1255.0,10.0]
[1610300150109,0.66578631,1255.3,1255.1,10.0]
[1610300150309,0.99926905,1255.6,1255.1,10.0]
[1610300150508,4.16778466,1256.1,1255.1,10.0]
[1610300150708,7.4986815,1256.4,1255.2,10.0]
[1610300150709,8.17797783,1256.3,1255.2,10.0]
[1610300150907,8.17797783,1256.3,1256.0,2.4105]
[1610300151108,2.93425147,1256.2,1256.0,2.4105]
[1610300151309,4.16639725,1256.1,1256.0,2.4105]
[1610300151711,4.17163096,1256.3,1256.0,2.4105]
[1610300151909,4.17163096,1256.3,1256.1,10.0]
[1610300152111,4.17634134,1256.4,1256.1,10.0]
[1610300152310,4.17634134,1256.4,1256.0,2.4105]
[1610300152510,4.17964793,1256.5,1256.2,10.0]
[1610300152711,15.30283654,1256.6,1256.4,4.00959]
[1610300152910,12.92363654,1256.6,1256.4,4.00959]
[1610300153110,7.53736783,1257.0,1256.4,4.00959]
[1610300153111,2.93429999,1256.5,1256.4,4.00959]
[1610300153513,8.79349314,1256.5,1256.4,14.00959]
[1610300153712,5.85919315,1256.5,1256.4,14.00959]
[1610300154212,7.44149315,1256.5,1256.4,14.00959]
[1610300154412,4.51698131,1256.5,1256.4,14.00959]
[1610300154812,14.38281907,1256.5,1256.4,10.0]
[1610300155214,17.7185989,1256.5,1256.4,10.0]
[1610300155412,16.1362989,1256.5,1256.4,8.037]
[1610300155612,17.79725546,1256.5,1256.4,5.9198]
[1610300155814,6.94427131,1256.5,1256.4,1.158]
[1610300156013,6.94427131,1256.5,1255.0,2.2593]
[1610300156214,10.83820508,1256.1,1254.4,53.0826]
[1610300156616,5.84521951,1255.8,1254.5,10.0]
[1610300156816,4.00959,1255.7,1254.5,12.1525]
[1610300157016,4.00959,1255.7,1254.6,10.0]
[1610300157216,2.93652641,1255.6,1254.6,10.0]
[1610300157415,2.93652641,1255.6,1254.7,10.0]
[1610300157617,5.83106603,1255.2,1254.7,10.0]
[1610300157818,5.83106603,1255.2,1254.6,10.0]
[1610300158018,5.82861055,1255.1,1254.8,10.0]
[1610300158217,5.82962137,1255.2,1254.8,10.0]
[1610300158417,5.82962137,1255.2,1254.8,1.5743]
[1610300158618,2.93813554,1255.0,1254.8,1.5743]
[1610300158817,2.93813554,1255.0,1254.9,14.00959]
[1610300159018,5.8321299,1255.4,1254.9,14.00959]
[1610300159220,2.93788077,1255.0,1254.9,14.00959]
[1610300159420,2.93788077,1255.0,1254.9,4.00959]
[1610300159620,5.8321299,1255.4,1254.9,4.00959]
[1610300159819,5.8321299,1255.4,1254.9,10.0]
[1610300160021,2.93833896,1255.0,1254.9,10.0]
[1610300160220,2.91919714,1255.0,1254.9,10.0]
[1610300160421,2.91919714,1255.0,1254.8,1.5743]
[1610300160621,2.91919714,1255.0,1254.9,10.0]
[1610300160822,6.92878714,1255.0,1254.9,10.0]
[1610300161422,2.93841331,1255.0,1254.9,10.0]
[1610300161623,8.76464127,1255.0,1254.9,10.0]
[1610300162423,5.82622796,1255.0,1254.8,1.5743]
[1610300162723,10.37589923,1255.0,1254.9,10.0]
[1610300162925,8.76529923,1255.0,1254.9,10.0]
[1610300163124,11.45859985,1255.0,1254.9,10.0]
[1610300163324,8.51952858,1255.0,1254.9,10.0]
[1610300163723,11.45852608,1255.0,1254.9,10.0]
[1610300163923,13.05812608,1255.0,1254.9,10.0]
[1610300164124,14.72151915,1255.0,1254.9,10.0]
[1610300164524,14.72151915,1255.0,1254.5,2.1525]
[1610300164525,16.38171883,1255.0,1254.5,12.1525]
[1610300164725,4.5385975,1255.0,1254.5,12.1525]
[1610300164923,4.00959,1254.6,1254.5,2.1525]
[1610300165125,6.95008793,1254.6,1254.3,10.0]
[1610300165328,6.95008793,1254.6,1253.3,4.00959]
[1610300165526,6.95008793,1254.6,1254.4,10.0]
[1610300165527,2.94070672,1254.5,1254.4,10.0]
[1610300165724,2.94070672,1254.5,1253.4,10.0]
[1610300165925,2.94070672,1254.5,1253.5,10.0]
[1610300166125,2.90443449,1253.7,1253.5,12.1471]
[1610300166327,2.90443449,1253.7,1253.5,2.1471]
[1610300166526,2.90636234,1253.9,1253.6,10.0]
[1610300166727,9.40556234,1253.9,1253.6,10.0]
[1610300166928,4.00959,1253.7,1253.5,2.1471]
[1610300167127,2.94080911,1253.7,1253.5,2.1471]
[1610300167329,2.94080911,1253.7,1253.6,10.0]
[1610300167528,2.94069357,1253.8,1253.6,10.0]
[1610300167726,2.94069357,1253.8,1253.7,10.0]
[1610300167928,2.94069357,1253.8,1253.6,10.0]
[1610300168527,2.94069357,1253.8,1253.7,10.0]
[1610300168728,5.81431961,1254.5,1253.6,10.0]
[1610300168929,5.81202182,1254.6,1254.4,4.00959]
[1610300169330,2.9398869,1254.5,1254.4,14.00959]
[1610300169529,10.59107992,1254.9,1254.4,4.00959]
[1610300169730,7.48620268,1255.5,1254.4,4.00959]
[1610300170130,1.66538195,1255.4,1254.5,10.0]
[1610300170328,12.73711623,1255.6,1254.5,10.0]
[1610300170329,8.48101623,1255.6,1254.5,10.0]
[1610300170529,8.48101623,1255.6,1254.5,2.0161]
[1610300170731,53.8385,1255.7,1254.6,10.0]
[1610300170930,7.52121024,1256.6,1255.6,4.00959]
[1610300171129,5.06041024,1256.6,1255.6,6.27699]
[1610300171331,9.203906,1257.1,1255.6,6.27699]
[1610300171529,8.033106,1257.1,1255.7,10.0]
[1610300171732,4.42307666,1256.9,1255.7,10.0]
[1610300171931,0.36347666,1256.9,1255.8,10.0]
[1610300172131,4.11017332,1257.5,1255.8,10.0]
[1610300172331,3.84887332,1257.5,1255.7,10.0]
[1610300172530,3.96092307,1257.7,1255.9,10.0]
[1610300172734,12.59232964,1258.8,1255.9,10.0]
[1610300172932,12.59232964,1258.8,1258.2,4.00959]
[1610300173132,3.74829932,1258.4,1258.2,4.00959]
[1610300173334,3.74829932,1258.4,1257.8,2.0062]
[1610300173534,12.59232964,1258.8,1258.2,10.0]
[1610300173942,12.56933032,1258.6,1258.2,5.11134267]
[1610300174139,2.2678,1258.6,1258.2,5.11134267]
[1610300174340,14.83108463,1258.6,1258.2,5.11134267]
[1610300174741,12.55184323,1258.5,1258.2,5.11134267]
[1610300174940,12.55184323,1258.5,1258.4,4.00959]
[1610300175142,14.82718468,1258.6,1258.4,4.00959]
[1610300175340,2.2678,1258.6,1258.4,4.00959]
[1610300175540,2.2678,1258.6,1258.2,5.11134267]
[1610300176141,2.2678,1258.6,1257.6,10.0]
[1610300176341,12.53341058,1258.5,1257.6,10.0]
[1610300176741,12.53341058,1258.5,1255.9,1.6719]
[1610300176742,12.51373454,1258.2,1257.7,10.0]
[1610300176941,4.00959,1257.8,1257.7,10.0]
[1610300177144,5.90529,1257.8,1256.0,10.0]
[1610300177544,20.05197727,1257.8,1256.0,10.0]
[1610300177743,12.48249051,1257.5,1256.0,10.0]
[1610300177942,14.20729051,1257.5,1256.0,10.0]
[1610300178143,12.47163179,1257.4,1254.9,10.0]
[1610300178342,12.47163179,1257.4,1253.1,1.95737011]
[1610300178544,14.96132273,1257.0,1253.3,10.0]
[1610300178742,14.96132273,1257.0,1253.3,2.2645]
[1610300178743,12.44336691,1256.7,1253.3,2.2645]
[1610300178942,4.00959,1254.8,1254.1,4.00959]
[1610300179143,2.90190104,1255.4,1254.1,4.00959]
[1610300179342,2.0615,1254.9,1254.1,4.00959]
[1610300179542,2.0615,1254.9,1254.2,10.0]
[1610300179942,3.38770148,1254.9,1254.2,10.0]
[1610300180647,1.32748165,1255.0,1254.3,10.0]
[1610300180845,1.32748165,1255.0,1254.4,10.0]
[1610300181047,1.32804551,1255.1,1254.9,4.00959]
[1610300181446,0.76144551,1255.1,1254.9,4.00959]
[1610300181646,0.61778751,1255.2,1255.0,10.0]
[1610300181845,2.92047986,1256.1,1255.0,10.0]
[1610300182145,4.17472314,1256.3,1255.1,10.0]
[1610300182545,4.17797243,1256.4,1255.0,10.0]
[1610300182846,4.17797243,1256.4,1254.9,6.12209]
[1610300182847,4.17797243,1256.4,1255.2,10.0]
[1610300183045,4.17797243,1256.4,1256.3,4.00959]
[1610300183245,3.05937243,1256.4,1256.3,4.00959]
[1610300183446,3.05937243,1256.4,1256.3,14.00959]
[1610300183648,5.05177404,1256.6,1256.3,14.00959]
[1610300183845,2.49177404,1256.6,1256.4,10.0]
[1610300184044,2.49177404,1256.6,1256.4,0.0346]
[1610300184446,7.53756582,1256.8,1255.8,1.8575]
[1610300184845,17.6225434,1256.9,1255.9,10.0]
[1610300185046,17.6225434,1256.9,1256.8,4.00959]
[1610300185647,17.6225434,1256.9,1256.8,14.00959]
[1610300185848,5.8947,1256.9,1256.8,14.00959]
[1610300186047,5.8947,1256.9,1256.8,15.61559]
[1610300186251,5.6569,1256.9,1256.8,15.61559]
[1610300186449,7.2592,1256.9,1256.8,15.61559]
[1610300186947,7.2592,1256.9,1256.8,14.00959]
[1610300187149,5.6569,1256.9,1256.8,14.00959]
[1610300188152,7.2372,1256.9,1256.8,16.21399]
[1610300188352,5.6569,1256.9,1256.8,16.21399]
[1610300189656,5.6569,1256.9,1256.8,14.00959]
[1610300189858,5.6569,1256.9,1256.8,10.0]
[1610300190256,5.6569,1256.9,1256.8,11.6045]
[1610300190457,14.89157124,1256.9,1256.8,10.0]
[1610300190859,19.88174747,1256.9,1256.8,10.0]
[1610300191058,26.07253747,1256.9,1256.8,10.0]
[1610300191261,27.73301048,1256.9,1256.8,10.0]
[1610300191462,14.38678363,1256.9,1254.2,2.2821]
[1610300191858,35.16655183,1256.9,1254.2,2.2821]
[1610300192060,1.67036835,1255.1,1254.2,2.2821]
[1610300192460,3.23126835,1255.1,1254.2,2.2821]
[1610300192961,3.23126835,1255.1,1255.0,4.00959]
[1610300193159,1.5609,1255.1,1255.0,4.00959]
[1610300193359,2.92483997,1255.3,1255.0,6.36679]
[1610300193561,2.92788156,1255.6,1255.0,16.36679]
[1610300193762,2.93157972,1255.9,1255.1,10.0]
[1610300194162,2.93226401,1256.0,1255.2,10.0]
[1610300194567,2.933385,1256.1,1255.1,10.0]
[1610300194966,6.942975,1256.1,1256.0,4.00959]
[1610300195166,4.18463026,1256.1,1256.0,4.00959]
[1610300195367,5.85458293,1256.1,1256.0,5.60229]
[1610300195567,5.85458293,1256.1,1256.0,4.00959]
[1610300195771,4.18893336,1256.2,1256.0,14.00959]
[1610300196168,2.93670344,1256.1,1256.0,4.00959]
[1610300196568,2.1414746,1256.2,1256.0,4.00959]
[1610300196768,1.1237746,1256.2,1256.0,14.00959]
[1610300196968,4.1975873,1256.5,1256.1,10.0]
[1610300197370,4.20402515,1256.7,1256.2,10.0]
[1610300197770,4.20402515,1256.7,1256.1,10.0]
[1610300198169,4.20402515,1256.7,1256.3,10.0]
[1610300198369,4.20402515,1256.7,1256.3,2.3612]
[1610300198670,4.20402515,1256.7,1256.4,10.0]
[1610300198970,4.20402515,1256.7,1256.6,4.00959]
[1610300199169,5.8839549,1256.7,1256.5,10.0]
[1610300199369,5.8839549,1256.7,1256.0,1.8672]
[1610300199569,5.8839549,1256.7,1256.4,10.0]
[1610300199769,7.55478612,1256.7,1256.6,10.0]
[1610300199969,5.88167408,1256.7,1256.3,1.8715]
[1610300200169,5.88167408,1256.7,1256.0,1.8672]
[1610300200371,8.81847725,1256.7,1256.6,10.0]
[1610300200573,8.02127725,1256.7,1256.6,10.0]
[1610300200771,2.93680317,1256.7,1256.3,1.9629]
[1610300200973,2.93680317,1256.7,1256.6,4.00959]
[1610300201173,4.21126218,1256.8,1256.6,5.54879]
[1610300201372,4.03706218,1256.8,1256.6,5.54879]
[1610300201573,12.1961076,1257.2,1256.6,5.54879]
[1610300201574,2.93625958,1256.7,1256.6,7.12699]
[1610300201772,2.34185958,1256.7,1256.6,7.12699]
[1610300201971,2.34185958,1256.7,1256.6,17.12699]
[1610300202172,2.34185958,1256.7,1256.6,13.1174]
[1610300202372,12.47422859,1257.3,1256.6,13.1174]
[1610300202373,7.57299352,1257.2,1256.6,13.1174]
[1610300202573,7.55861367,1256.8,1256.7,10.0]
[1610300202773,9.22441367,1256.8,1256.7,10.0]
[1610300202974,1.6658,1256.8,1255.3,59.852]
[1610300203173,8.61338058,1256.8,1256.7,10.0]
[1610300203372,8.61338058,1256.8,1256.2,4.00959]
[1610300203573,21.15619402,1256.8,1255.3,61.4641]
[1610300203774,21.15619402,1256.8,1256.7,10.0]
[1610300203974,21.15619402,1256.8,1256.3,10.0]
[1610300204374,12.52797102,1256.6,1255.4,10.0]
[1610300204574,5.47760674,1256.7,1255.4,10.0]
[1610300204575,14.18147066,1256.5,1255.4,10.0]
[1610300204774,16.22397066,1256.5,1255.1,10.0]
[1610300205179,4.00959,1255.2,1254.8,10.0]
[1610300205375,13.08821864,1255.2,1254.8,10.0]
[1610300205575,13.08821864,1255.2,1252.7,10.0]
[1610300205775,7.49740665,1255.1,1252.7,11.6087]
[1610300205976,0.08322841,1253.8,1252.8,10.0]
[1610300206376,0.08313826,1253.6,1252.8,10.0]
[1610300206576,0.08313826,1253.6,1252.9,10.0]
[1610300206777,3.826e-05,1253.6,1252.9,1.5765]
[1610300206977,0.08307756,1253.5,1252.9,1.5765]
[1610300207179,0.41538779,1253.6,1253.4,4.00959]
[1610300207377,0.41538779,1253.6,1253.0,10.0]
[1610300207576,0.41538779,1253.6,1253.4,10.0]
[1610300207776,0.41504204,1253.5,1253.4,10.0]
[1610300207976,0.41504204,1253.5,1252.9,1.5765]
[1610300207977,1.7996,1253.8,1252.9,1.5765]
[1610300208278,1.7996,1253.8,1253.0,10.0]
[1610300208477,0.41457868,1253.3,1253.0,10.0]
[1610300208679,0.41457868,1253.3,1253.1,10.0]
[1610300208878,0.41458749,1253.2,1253.1,10.0]
[1610300209077,4.00959,1253.2,1253.0,10.0]
[1610300209478,4.00959,1253.2,1252.6,4.00959]
[1610300209678,4.00959,1253.2,1253.1,10.0]
[1610300210078,4.00959,1253.2,1253.1,1.5971]
[1610300210479,2.94388873,1253.2,1253.1,11.5971]
[1610300211179,2.90272273,1253.3,1253.1,15.60669]
[1610300211379,2.94421319,1253.2,1253.1,10.0]
[1610300211681,5.85027804,1253.4,1253.1,10.0]
[1610300211981,2.90525874,1253.3,1253.2,10.0]
[1610300212179,7.09246773,1253.4,1250.8,0.49067802]
[1610300212379,7.09246773,1253.4,1252.6,10.0]
[1610300212579,8.11323552,1253.5,1252.6,11.9049]
[1610300212580,0.99349276,1252.7,1252.6,11.9049]
[1610300212779,0.99349276,1252.7,1252.6,1.9049]
[1610300212980,0.99385467,1252.8,1252.7,10.0]
[1610300213180,4.00959,1252.8,1252.7,10.0]
[1610300213380,4.00959,1252.8,1252.6,11.9049]
[1610300213580,7.0658,1252.7,1252.6,11.9049]
[1610300213980,11.66511527,1252.7,1252.6,11.9049]
[1610300214180,10.01146457,1252.7,1252.6,11.9049]
[1610300214384,10.01146457,1252.7,1252.6,1.9049]
[1610300214584,10.01146457,1252.7,1252.3,10.0]
[1610300214782,7.0658,1252.7,1252.3,1.6203]